{"text_format":"3","workbook":"xlsx","n_sheets":1,"sheets":["Vyúčtovanie výdavkov"],"not_rendered":{"images":2,"defined_names":12},"read":"whole","date_system":"1900"}

{"sheet":"Vyúčtovanie výdavkov","index":0,"n_rows":24,"n_cols":13,"rows_kept":24,"merged":[[3,2,3,3],[3,5,3,6],[3,9,3,10],[4,2,4,3],[4,5,4,6],[4,9,4,10],[5,2,5,3],[5,5,5,6],[5,9,5,10],[6,2,6,3],[6,5,6,6],[6,9,6,10],[7,9,7,10]]}
[null,"VYÚČTOVANIE VÝDAVKOV"]
[null,"CONTOSO, s. r. o."]
[null,"Hlavná ulica 123, Bratislava, 800 00"]
[null,"TELEFÓN",4255550121,null,"MENO","Lucia Králiková",null,null,"ÚČEL","Výročný predajný seminár",null,"SUMA NA KILOMETER",{"v":0.5,"d":"0.50€/km"}]
[null,"FAX",4255550122,null,"ODDELENIE","Predaj",null,null,"ZAČIATOK",{"$f":"IFERROR(MIN(Výdavky[DÁTUM]),\"\")","v":"2018-06-04"},null,"SUMA NA DIÉTY",{"v":30,"d":"30.00€/deň"}]
[null,"E-MAIL","info@contoso.com",null,"POZÍCIA","Generálna riaditeľka",null,null,"KONIEC",{"$f":"IFERROR(MAX(Výdavky[DÁTUM]),\"\")","v":"2018-07-04"},null,"SUMA NA HOTEL",{"v":200,"d":"200.00€/noc"}]
[null,"WEB","www.contoso.com",null,"MANAŽÉR","Pavol Sloboda",null,null,"VYPRACOVAL(-A)","Lucia Králiková",null,"SUMA NA TELEFÓN",{"v":10,"d":"10.00€/deň"}]
[{"$nulls":8},"SCHVÁLIL(-A)","Pavol Sloboda",null,"SUMA NA RÔZNE",{"v":50,"d":"50.00€/deň"}]
[]
[null,"DÁTUM","ÚČET","POPIS","HOTEL","DOPRAVA","DIÉTY","TELEFÓN","RÔZNE","TACHOMETER \n– POČIATOČNÝ STAV","TACHOMETER \n– KONEČNÝ STAV","POČET KILOMETROV \nCELKOM","SPOLU "]
[null,{"$f":"TODAY()","v":"2018-06-04"},"Predaj","Kilometre",{"$nulls":4},{"v":50,"d":"50.00 €"},{"v":11378.5,"d":"11,378.5km"},{"v":11456.2,"d":"11,456.2km"},{"$f":"IF(COUNTA(Výdavky[[#This Row],[TACHOMETER \n– POČIATOČNÝ STAV]:[TACHOMETER \n– KONEČNÝ STAV]])=2,(Výdavky[[#This Row],[TACHOMETER \n– KONEČNÝ STAV]]-Výdavky[[#This Row],[TACHOMETER \n– POČIATOČNÝ STAV]])*SumaNaKilometer,\"\")","v":{"v":38.850000000000364,"d":"38.85 €"}},{"$f":"IF(COUNTA(Výdavky[[#This Row],[DÁTUM]:[TACHOMETER \n– KONEČNÝ STAV]])=0,\"\",SUM(Výdavky[[#This Row],[HOTEL]:[DOPRAVA]],Výdavky[[#This Row],[DIÉTY]:[RÔZNE]],((Výdavky[[#This Row],[TACHOMETER \n– KONEČNÝ STAV]]-Výdavky[[#This Row],[TACHOMETER \n– POČIATOČNÝ STAV]])*(SumaNaKilometer))))","v":{"v":88.85000000000036,"d":"88.85 €"}}]
[null,{"$f":"TODAY()+30","v":"2018-07-04"},"Predaj","Kongres",{"v":445,"d":"445.00 €"},{"v":225,"d":"225.00 €"},{"v":20,"d":"20.00 €"},null,{"v":5,"d":"5.00 €"},{"v":11500,"d":"11,500.0km"},{"v":11560,"d":"11,560.0km"},{"$f":"IF(COUNTA(Výdavky[[#This Row],[TACHOMETER \n– POČIATOČNÝ STAV]:[TACHOMETER \n– KONEČNÝ STAV]])=2,(Výdavky[[#This Row],[TACHOMETER \n– KONEČNÝ STAV]]-Výdavky[[#This Row],[TACHOMETER \n– POČIATOČNÝ STAV]])*SumaNaKilometer,\"\")","v":{"v":30,"d":"30.00 €"}},{"$f":"IF(COUNTA(Výdavky[[#This Row],[DÁTUM]:[TACHOMETER \n– KONEČNÝ STAV]])=0,\"\",SUM(Výdavky[[#This Row],[HOTEL]:[DOPRAVA]],Výdavky[[#This Row],[DIÉTY]:[RÔZNE]],((Výdavky[[#This Row],[TACHOMETER \n– KONEČNÝ STAV]]-Výdavky[[#This Row],[TACHOMETER \n– POČIATOČNÝ STAV]])*(SumaNaKilometer))))","v":{"v":725,"d":"725.00 €"}}]
[{"$nulls":11},{"$f":"IF(COUNTA(Výdavky[[#This Row],[TACHOMETER \n– POČIATOČNÝ STAV]:[TACHOMETER \n– KONEČNÝ STAV]])=2,(Výdavky[[#This Row],[TACHOMETER \n– KONEČNÝ STAV]]-Výdavky[[#This Row],[TACHOMETER \n– POČIATOČNÝ STAV]])*SumaNaKilometer,\"\")","v":""},{"$f":"IF(COUNTA(Výdavky[[#This Row],[DÁTUM]:[TACHOMETER \n– KONEČNÝ STAV]])=0,\"\",SUM(Výdavky[[#This Row],[HOTEL]:[DOPRAVA]],Výdavky[[#This Row],[DIÉTY]:[RÔZNE]],((Výdavky[[#This Row],[TACHOMETER \n– KONEČNÝ STAV]]-Výdavky[[#This Row],[TACHOMETER \n– POČIATOČNÝ STAV]])*(SumaNaKilometer))))","v":""}]
[{"$nulls":11},{"$f":"IF(COUNTA(Výdavky[[#This Row],[TACHOMETER \n– POČIATOČNÝ STAV]:[TACHOMETER \n– KONEČNÝ STAV]])=2,(Výdavky[[#This Row],[TACHOMETER \n– KONEČNÝ STAV]]-Výdavky[[#This Row],[TACHOMETER \n– POČIATOČNÝ STAV]])*SumaNaKilometer,\"\")","v":""},{"$f":"IF(COUNTA(Výdavky[[#This Row],[DÁTUM]:[TACHOMETER \n– KONEČNÝ STAV]])=0,\"\",SUM(Výdavky[[#This Row],[HOTEL]:[DOPRAVA]],Výdavky[[#This Row],[DIÉTY]:[RÔZNE]],((Výdavky[[#This Row],[TACHOMETER \n– KONEČNÝ STAV]]-Výdavky[[#This Row],[TACHOMETER \n– POČIATOČNÝ STAV]])*(SumaNaKilometer))))","v":""}]
[{"$nulls":11},{"$f":"IF(COUNTA(Výdavky[[#This Row],[TACHOMETER \n– POČIATOČNÝ STAV]:[TACHOMETER \n– KONEČNÝ STAV]])=2,(Výdavky[[#This Row],[TACHOMETER \n– KONEČNÝ STAV]]-Výdavky[[#This Row],[TACHOMETER \n– POČIATOČNÝ STAV]])*SumaNaKilometer,\"\")","v":""},{"$f":"IF(COUNTA(Výdavky[[#This Row],[DÁTUM]:[TACHOMETER \n– KONEČNÝ STAV]])=0,\"\",SUM(Výdavky[[#This Row],[HOTEL]:[DOPRAVA]],Výdavky[[#This Row],[DIÉTY]:[RÔZNE]],((Výdavky[[#This Row],[TACHOMETER \n– KONEČNÝ STAV]]-Výdavky[[#This Row],[TACHOMETER \n– POČIATOČNÝ STAV]])*(SumaNaKilometer))))","v":""}]
[{"$nulls":11},{"$f":"IF(COUNTA(Výdavky[[#This Row],[TACHOMETER \n– POČIATOČNÝ STAV]:[TACHOMETER \n– KONEČNÝ STAV]])=2,(Výdavky[[#This Row],[TACHOMETER \n– KONEČNÝ STAV]]-Výdavky[[#This Row],[TACHOMETER \n– POČIATOČNÝ STAV]])*SumaNaKilometer,\"\")","v":""},{"$f":"IF(COUNTA(Výdavky[[#This Row],[DÁTUM]:[TACHOMETER \n– KONEČNÝ STAV]])=0,\"\",SUM(Výdavky[[#This Row],[HOTEL]:[DOPRAVA]],Výdavky[[#This Row],[DIÉTY]:[RÔZNE]],((Výdavky[[#This Row],[TACHOMETER \n– KONEČNÝ STAV]]-Výdavky[[#This Row],[TACHOMETER \n– POČIATOČNÝ STAV]])*(SumaNaKilometer))))","v":""}]
[{"$nulls":11},{"$f":"IF(COUNTA(Výdavky[[#This Row],[TACHOMETER \n– POČIATOČNÝ STAV]:[TACHOMETER \n– KONEČNÝ STAV]])=2,(Výdavky[[#This Row],[TACHOMETER \n– KONEČNÝ STAV]]-Výdavky[[#This Row],[TACHOMETER \n– POČIATOČNÝ STAV]])*SumaNaKilometer,\"\")","v":""},{"$f":"IF(COUNTA(Výdavky[[#This Row],[DÁTUM]:[TACHOMETER \n– KONEČNÝ STAV]])=0,\"\",SUM(Výdavky[[#This Row],[HOTEL]:[DOPRAVA]],Výdavky[[#This Row],[DIÉTY]:[RÔZNE]],((Výdavky[[#This Row],[TACHOMETER \n– KONEČNÝ STAV]]-Výdavky[[#This Row],[TACHOMETER \n– POČIATOČNÝ STAV]])*(SumaNaKilometer))))","v":""}]
[{"$nulls":11},{"$f":"IF(COUNTA(Výdavky[[#This Row],[TACHOMETER \n– POČIATOČNÝ STAV]:[TACHOMETER \n– KONEČNÝ STAV]])=2,(Výdavky[[#This Row],[TACHOMETER \n– KONEČNÝ STAV]]-Výdavky[[#This Row],[TACHOMETER \n– POČIATOČNÝ STAV]])*SumaNaKilometer,\"\")","v":""},{"$f":"IF(COUNTA(Výdavky[[#This Row],[DÁTUM]:[TACHOMETER \n– KONEČNÝ STAV]])=0,\"\",SUM(Výdavky[[#This Row],[HOTEL]:[DOPRAVA]],Výdavky[[#This Row],[DIÉTY]:[RÔZNE]],((Výdavky[[#This Row],[TACHOMETER \n– KONEČNÝ STAV]]-Výdavky[[#This Row],[TACHOMETER \n– POČIATOČNÝ STAV]])*(SumaNaKilometer))))","v":""}]
[{"$nulls":11},{"$f":"IF(COUNTA(Výdavky[[#This Row],[TACHOMETER \n– POČIATOČNÝ STAV]:[TACHOMETER \n– KONEČNÝ STAV]])=2,(Výdavky[[#This Row],[TACHOMETER \n– KONEČNÝ STAV]]-Výdavky[[#This Row],[TACHOMETER \n– POČIATOČNÝ STAV]])*SumaNaKilometer,\"\")","v":""},{"$f":"IF(COUNTA(Výdavky[[#This Row],[DÁTUM]:[TACHOMETER \n– KONEČNÝ STAV]])=0,\"\",SUM(Výdavky[[#This Row],[HOTEL]:[DOPRAVA]],Výdavky[[#This Row],[DIÉTY]:[RÔZNE]],((Výdavky[[#This Row],[TACHOMETER \n– KONEČNÝ STAV]]-Výdavky[[#This Row],[TACHOMETER \n– POČIATOČNÝ STAV]])*(SumaNaKilometer))))","v":""}]
[{"$nulls":11},{"$f":"IF(COUNTA(Výdavky[[#This Row],[TACHOMETER \n– POČIATOČNÝ STAV]:[TACHOMETER \n– KONEČNÝ STAV]])=2,(Výdavky[[#This Row],[TACHOMETER \n– KONEČNÝ STAV]]-Výdavky[[#This Row],[TACHOMETER \n– POČIATOČNÝ STAV]])*SumaNaKilometer,\"\")","v":""},{"$f":"IF(COUNTA(Výdavky[[#This Row],[DÁTUM]:[TACHOMETER \n– KONEČNÝ STAV]])=0,\"\",SUM(Výdavky[[#This Row],[HOTEL]:[DOPRAVA]],Výdavky[[#This Row],[DIÉTY]:[RÔZNE]],((Výdavky[[#This Row],[TACHOMETER \n– KONEČNÝ STAV]]-Výdavky[[#This Row],[TACHOMETER \n– POČIATOČNÝ STAV]])*(SumaNaKilometer))))","v":""}]
[{"$nulls":11},{"$f":"IF(COUNTA(Výdavky[[#This Row],[TACHOMETER \n– POČIATOČNÝ STAV]:[TACHOMETER \n– KONEČNÝ STAV]])=2,(Výdavky[[#This Row],[TACHOMETER \n– KONEČNÝ STAV]]-Výdavky[[#This Row],[TACHOMETER \n– POČIATOČNÝ STAV]])*SumaNaKilometer,\"\")","v":""},{"$f":"IF(COUNTA(Výdavky[[#This Row],[DÁTUM]:[TACHOMETER \n– KONEČNÝ STAV]])=0,\"\",SUM(Výdavky[[#This Row],[HOTEL]:[DOPRAVA]],Výdavky[[#This Row],[DIÉTY]:[RÔZNE]],((Výdavky[[#This Row],[TACHOMETER \n– KONEČNÝ STAV]]-Výdavky[[#This Row],[TACHOMETER \n– POČIATOČNÝ STAV]])*(SumaNaKilometer))))","v":""}]
[null,"SPOLU",null,null,{"$f":"SUBTOTAL(109,Výdavky[HOTEL])","v":{"v":445,"d":"445.00 €"}},{"$f":"SUBTOTAL(109,Výdavky[DOPRAVA])","v":{"v":225,"d":"225.00 €"}},{"$f":"SUBTOTAL(109,Výdavky[DIÉTY])","v":{"v":20,"d":"20.00 €"}},{"$f":"SUBTOTAL(109,Výdavky[TELEFÓN])","v":0},{"$f":"SUBTOTAL(109,Výdavky[RÔZNE])","v":{"v":55,"d":"55.00 €"}},{"$nulls":3},{"$f":"SUBTOTAL(109,Výdavky[[SPOLU ]])","v":{"v":813.8500000000004,"d":"813.85 €"}}]
[{"$nulls":11},"ZÁLOHY",{"v":0,"d":"0.00 €"}]
[{"$nulls":11},"SPOLU",{"$f":"Výdavky[[#Totals],[SPOLU ]]-Zálohy","v":{"v":813.8500000000004,"d":"813.85 €"}}]